fUSD/lending_fUSD_20240419
["ID","MTS","AMOUNT","RATE_DAILY","PERIOD"]
[322975028,1713553832209,-830.17,0.00011857,2]
[322975029,1713553832219,-1825.05,0.00011997,2]
[322975030,1713553832228,-4986.02,0.00012006,2]
[322975031,1713553832238,-1138.47,0.00012088,2]
[322975032,1713553832247,-1116.89,0.00012204,2]
[322975033,1713553832257,-151.46,0.0001225,2]
[322975034,1713553832273,-210.0,0.00012357,2]
[322975035,1713553832282,-150.0,0.00012446,2]
[322975037,1713553832291,-3474.7267594,0.00012446,2]
[322975039,1713553832303,-347.17012253,0.00012446,2]
[322975044,1713553832345,-8708.92946294,0.00012446,2]
[322975046,1713553832356,-1162.26223792,0.00012446,2]
[322975048,1713553832367,-3086.40000001,0.00012446,2]
[322975051,1713553832455,-507.43868763,0.00012446,2]
[322975052,1713553832470,-6613.07272957,0.00012446,2]
[322975053,1713553832479,-2339.1,0.00012504,2]
[322975054,1713553832525,-1587.83,0.00012524,2]
[322975055,1713553832536,-3870.50159259,0.00012586,2]
[322975056,1713553832549,-127.71840741,0.00012586,2]
[322975057,1713553832560,-416.65834051,0.00012595,2]
[322975058,1713553832574,-1875.10744736,0.00012595,2]
[322975076,1713553838370,-155.0,0.00011224,2]
[322975077,1713553838380,-301.18062967,0.00012595,2]
[322975078,1713553838391,-587.56358246,0.00012595,2]
[322975079,1713553838401,-283.42786846,0.00012639,2]
[322975080,1713553838412,-216.57213154,0.00012639,2]
[322975081,1713553838422,-589.54,0.00012675,2]
[322975082,1713553838431,-191.13105136,0.00012789,2]
[322975083,1713553838451,-482.75885174,0.00012789,2]
[322975084,1713553838520,-2345.6287969,0.00012789,2]
[322975085,1713553838529,-898.95,0.00013039,2]
[322975086,1713553838538,-153.47,0.00013098,2]
[322975087,1713553838548,-250.0,0.00013145,2]
[322975088,1713553838557,-153.47,0.00013212,2]
[322975089,1713553838567,-1000.0,0.00013284,2]
[322975090,1713553838576,-153.47,0.00013325,2]
[322975091,1713553838586,-500.0,0.00013425,2]
[322975092,1713553838595,-164.45,0.00013428,2]
[322975093,1713553838604,-153.47,0.00013439,2]
[322975094,1713553838614,-2500.0,0.00013479,2]
[322975095,1713553838624,-153.47,0.00013553,2]
[322975096,1713553838633,-610.2523671,0.00013578,2]
[322975097,1713553838642,-29927.0,0.0001358,2]
[322975098,1713553838651,-16081.2256,0.0001358,2]
[322975099,1713553838660,-155.17,0.00013623,2]
[322975100,1713553838669,-155.17,0.00013633,2]
[322975101,1713553838679,-155.17,0.00013642,2]
[322975102,1713553838688,-155.17,0.00013652,2]
[322975103,1713553838697,-155.17,0.00013662,2]
[322975104,1713553838706,-153.47,0.00013667,2]
[322975105,1713553838716,-1133.0,0.00013671,2]
[322975106,1713553838725,-155.17,0.00013672,2]
[322975107,1713553838734,-155.17,0.00013681,2]
[322975108,1713553838744,-155.17,0.00013691,2]
[322975109,1713553838754,-157.17390177,0.00013698,2]
[322975110,1713553838764,-2751.0,0.00013699,2]
[322975111,1713553838777,-1123.01,0.00013699,2]
[322975112,1713553838786,-336.97,0.00013699,2]
[322975113,1713553838795,-1500.0,0.00013699,2]
[322975114,1713553838804,-500.0,0.00013699,2]
[322975115,1713553838814,-200.0,0.00013699,2]
[322975116,1713553838823,-547.0,0.00013699,2]
[322975117,1713553838832,-750.0,0.000137,2]
[322975118,1713553838841,-4588.35461974,0.000137,2]
[322975119,1713553838851,-153.47,0.0001378,2]
[322975120,1713553838860,-5985.6,0.00013826,2]
[322975121,1713553838870,-378.78784574,0.00013947,2]
[322975122,1713553838879,-465.874468,0.00013973,2]
[322975123,1713553838890,-1035.34353987,0.00014,2]
[322975124,1713553838899,-151.06,0.00014,2]
[322975125,1713553838909,-202.17437643,0.00014132,2]
[322975126,1713553838919,-150.99,0.00014253,2]
[322975127,1713553838929,-151.46,0.00014291,2]
[322975128,1713553838939,-161.63,0.0001442,2]
[322975129,1713553838949,-1116.89,0.00014468,2]
[322975130,1713553838958,-409.8209,0.00014595,2]
[322975131,1713553838968,-1133.0,0.0001463,2]
[322975132,1713553838977,-547.0,0.00014658,2]
[322975133,1713553838989,-35228.79219969,0.00014694,2]
[322975134,1713553838998,-1000.0,0.0001476,2]
[322975135,1713553839009,-465.874468,0.00014795,2]
[322975136,1713553839023,-177.49408056,0.00014959,2]
[322975137,1713553839033,-251.7089,0.00015059,2]
[322975138,1713553839042,-1000.0,0.00015059,2]
[322975139,1713553839052,-161.55,0.00015085,2]
[322975140,1713553839061,-161.55,0.00015104,2]
[322975141,1713553839072,-161.55,0.00015123,2]
[322975142,1713553839082,-161.55,0.00015142,2]
[322975143,1713553839092,-3756.48115014,0.00015158,2]
[322975144,1713553839102,-161.55,0.00015161,2]
[322975145,1713553839112,-909.46,0.0001526,2]
[322975146,1713553839122,-27623.6529,0.00015289,2]
[322975147,1713553839132,-3998.22,0.00015325,2]
[322975148,1713553839141,-161.99593208,0.00015389,2]
[322975149,1713553839151,-11527.9809392,0.0001539,2]
[322975150,1713553839161,-500.0,0.00015413,2]
[322975151,1713553839170,-985.38975,0.0001546,2]
[322975152,1713553839180,-150.0,0.000155,2]
[322975153,1713553839190,-97824.6207,0.00015514,2]
[322975154,1713553839200,-154.17258648,0.00015517,2]
[322975155,1713553839210,-3179.30905199,0.00015517,2]
[322975156,1713553839220,-1133.0,0.00015589,2]
[322975157,1713553839231,-2499.0,0.000156,2]
[322975158,1713553839241,-205.89797358,0.00015605,2]
[322975159,1713553839251,-948.0,0.00015615,2]
[322975160,1713553839260,-207.65451655,0.00015615,2]
[322975161,1713553839277,-659448.51178088,0.00015615,2]
[322975162,1713553839286,-465.874468,0.00015616,2]
[322975163,1713553839296,-548.0,0.00015617,2]
[322975164,1713553839305,-1510.79961757,0.00015618,2]
[322975165,1713553839315,-4723.74384284,0.00015618,2]
[322975166,1713553839324,-215.79675141,0.00015618,2]
[322975167,1713553839334,-267.13908293,0.00015618,2]
[322975168,1713553839343,-2352.85048105,0.00015618,2]
[322975169,1713553839354,-952.65087054,0.00015618,2]
[322975170,1713553839363,-363.79877048,0.00015619,2]
[322975171,1713553839372,-6059.27000008,0.00015619,2]
[322975172,1713553839381,-266.49795061,0.0001562,2]
[322975173,1713553839391,-7449.32028778,0.0001562,2]
[322975174,1713553839401,-985.38976,0.0001568,2]
[322975175,1713553839410,-1113.58385878,0.0001568,2]
[322975176,1713553839421,-200.0,0.0001577,2]
[322975177,1713553839430,-167.56,0.00015831,2]
[322975178,1713553839440,-90869.87548636,0.0001588,2]
[322975179,1713553839449,-150.0,0.0001589,2]
[322975180,1713553839459,-837.08,0.0001589,2]
[322975181,1713553839469,-518.98,0.0001589,2]
[322975182,1713553839478,-348.31,0.0001589,2]
[322975183,1713553839488,-162.67,0.0001589,2]
[322975184,1713553839498,-162.67,0.0001589,2]
[322975185,1713553839507,-3179.30905193,0.00015891,2]
[322975186,1713553839520,-854.9439,0.00015897,2]
[322975187,1713553839529,-7500.0,0.000159,2]
[322975188,1713553839541,-221.24935362,0.000159,2]
[322975189,1713553839550,-323.23386246,0.000159,2]
[322975190,1713553839560,-207.00479242,0.000159,2]
[322975191,1713553839569,-161.31221783,0.000159,2]
[322975192,1713553839580,-3338.47560569,0.00015922,2]
[322975193,1713553839590,-1601.05957892,0.0001599,2]
[322975194,1713553839602,-151.06,0.0001599,2]
[322975195,1713553839613,-155.0,0.00015994,2]
[322975196,1713553839623,-210.50432826,0.00015997,2]
[322975197,1713553839632,-155.0,0.00015997,2]
[322975198,1713553839643,-376.66109702,0.00015997,2]
[322975199,1713553839652,-2358.86672188,0.00015997,2]
[322975200,1713553839662,-155.0,0.00015997,2]
[322975201,1713553839671,-1585.03652121,0.00015997,2]
[322975202,1713553839681,-8030.43075655,0.00015997,2]
[322975203,1713553839690,-1423.31443253,0.00015997,2]
[322975204,1713553839700,-161.43545051,0.00015997,2]
[322975205,1713553839709,-236.6335643,0.00015997,2]
[322975206,1713553839719,-155.0,0.00015997,2]
[322975207,1713553839728,-1081.54694968,0.00015998,5]
[322975208,1713553839739,-403971.68855704,0.00016,2]
[322975209,1713553839752,-230790.81726253,0.00016,2]
[322975210,1713553839764,-20136.5917547,0.00016,2]
[322975215,1713553840553,-631.59294462,0.00013671,2]
[322975216,1713553840641,-1626.775413,0.00013671,2]
[322975217,1713553840654,-1020.6188648,0.00013671,2]
[322975218,1713553840666,-2503.73914955,0.00013671,2]
[322975219,1713553840684,-63711.44330008,0.00013671,2]
[322975220,1713553840696,-2610.98205922,0.00013671,2]
[322975221,1713553840707,-484.23808323,0.00013671,2]
[322975222,1713553840726,-193073.01076035,0.00013671,2]
[322975223,1713553840762,-25468.30721686,0.00013671,2]
[322975224,1713553840776,-687.549999,0.00013671,2]
[322975225,1713553840787,-771.73,0.00013671,2]
[322975226,1713553840819,-4395.75536144,0.00013671,2]
[322975256,1713553843080,-248991.37592564,0.00013671,2]
[322975257,1713553843089,-114441.9257104,0.00016,2]
[322975258,1713553843101,-14487.10528176,0.00016,2]
[322975259,1713553843241,-1568.36907027,0.00016,2]
[322975260,1713553843253,-389.85256954,0.00016,2]
[322975261,1713553843300,-20560.61069053,0.00016,2]
[322975262,1713553843312,-316919.99999965,0.00016,2]
[322975273,1713553846453,-2330.21650424,0.00013669,2]
[322975275,1713553846462,-363.36988008,0.0001367,2]
[322975276,1713553846471,-206.468256,0.0001367,2]
[322975277,1713553846481,-523.73285481,0.0001367,2]
[322975278,1713553846490,-515.35443079,0.0001367,2]
[322975279,1713553846500,-418.9508,0.00015515,2]
[322975280,1713553846510,-14564.13603717,0.00016,2]
[322975281,1713553846543,-500.0,0.00013669,2]
[322975282,1713553846555,-1283.42081222,0.00013669,2]
[322975283,1713553846565,-30566.57918778,0.00016,2]
[322975284,1713553846576,-14658.24518129,0.00016,2]
[322975285,1713553881449,273.40553344,8.922e-05,2]
[322975286,1713553881471,592.60799644,8.922e-05,2]
[322975287,1713553967455,155.0,8.922e-05,2]
[322975288,1713553983476,155.0,8.922e-05,2]
[322975290,1713554005434,155.0,8.922e-05,2]
[322975291,1713554025484,249.19006544,8.922e-05,2]
[322975292,1713554159622,155.0,8.922e-05,2]
[322975293,1713554177616,155.0,8.922e-05,2]
[322975294,1713554193809,155.0,8.922e-05,2]
[322975295,1713554219905,155.0,8.922e-05,2]
[322975296,1713554404646,8944.71966837,8.922e-05,2]
[322975297,1713554406998,266.49795061,8.922e-05,2]
[322975357,1713555032500,-347.96815075,0.00011694,2]
[322975358,1713555032580,-1249.322064,0.00011694,2]
[322975359,1713555032617,-1700.0,0.00011694,2]
[322975360,1713555032629,-4726.24366507,0.00011694,2]
[322975361,1713555032647,-1078.86842501,0.00011694,2]
[322975362,1713555032666,-700.08093092,0.00011694,2]
[322975385,1713555038193,-759.53838552,0.00011694,2]
[322975386,1713555038202,-2599.56161449,0.00011694,2]
[322975387,1713555038214,-515.63211921,0.00011694,2]
[322975388,1713555038225,-322.62242558,0.00011694,2]
[322975389,1713555038289,-717.75000002,0.00011694,2]
[322975390,1713555038328,-425.64498104,0.00011694,2]
[322975391,1713555038337,-645.6649562,0.00011695,2]
[322975392,1713555038348,-4320.75216482,0.00011695,2]
[322975393,1713555038358,-1982.92990131,0.00011695,2]
[322975394,1713555038367,-2998.8492905,0.00011696,2]
[322975395,1713555038377,-150.0,0.00011697,2]
[322975396,1713555038386,-1241.48312189,0.00011697,2]
[322975397,1713555038396,-967.19043138,0.00011697,2]
[322975398,1713555038405,-155.0,0.00011697,2]
[322975399,1713555038414,-183.8358,0.00011698,2]
[322975400,1713555038424,-5304.6116,0.00011701,2]
[322975401,1713555038434,-1783.42081222,0.0001179,2]
[322975402,1713555038444,-1783.42081222,0.0001179,2]
[322975403,1713555038453,-1114.58,0.00011801,2]
[322975404,1713555038463,-306.75,0.00012236,2]
[322975405,1713555038472,-197.55604545,0.00012315,2]
[322975406,1713555038482,-742146.184396,0.00012325,2]
[322975407,1713555038491,-210.0,0.00012867,2]
[322975408,1713555038501,-177.49408055,0.00012876,2]
[322975409,1713555038511,-2681.95,0.00013319,2]
[322975410,1713555038520,-324.76,0.00013457,2]
[322975411,1713555038529,-7684.1386,0.00013479,2]
[322975412,1713555038538,-324.76,0.00013493,2]
[322975413,1713555038549,-324.76,0.0001353,2]
[322975414,1713555038558,-324.76,0.00013567,2]
[322975415,1713555038567,-4483.2567,0.0001358,2]
[322975416,1713555038576,-324.76,0.00013604,2]
[322975417,1713555038585,-324.76,0.00013641,2]
[322975418,1713555038594,-2221.49,0.00013675,2]
[322975419,1713555038604,-324.76,0.00013678,2]
[322975420,1713555038613,-2221.49,0.00013678,2]
[322975421,1713555038622,-2221.49,0.00013682,2]
[322975422,1713555038632,-2221.49,0.00013686,2]
[322975423,1713555038641,-2221.49,0.00013689,2]
[322975424,1713555038654,-2221.49,0.00013693,2]
[322975425,1713555038664,-2221.49,0.00013696,2]
[322975427,1713555038672,-232.65,0.00013699,2]
[322975429,1713555038681,-500.0,0.00013699,2]
[322975431,1713555038691,-1009.0,0.00013699,2]
[322975432,1713555038700,-499.99,0.00013699,2]
[322975435,1713555038710,-548.0,0.00013699,2]
[322975436,1713555038719,-2221.49,0.000137,2]
[322975438,1713555038728,-2221.49,0.00013704,2]
[322975440,1713555038739,-2221.49,0.00013707,2]
[322975442,1713555038748,-2221.49,0.00013711,2]
[322975444,1713555038757,-400.0,0.00013711,2]
[322975446,1713555038766,-2221.49,0.00013714,2]
[322975448,1713555038775,-324.76,0.00013715,2]
[322975450,1713555038784,-2221.49,0.00013718,2]
[322975452,1713555038793,-2221.49,0.00013721,2]
[322975455,1713555038806,-2221.49,0.00013725,2]
[322975457,1713555038815,-2221.49,0.00013729,2]
[322975459,1713555038824,-162.84,0.00013731,2]
[322975461,1713555038832,-2221.49,0.00013732,2]
[322975463,1713555038841,-2221.49,0.00013736,2]
[322975465,1713555038850,-2221.49,0.00013739,2]
[322975467,1713555038859,-2221.49,0.00013743,2]
[322975469,1713555038869,-23900.0,0.00013745,2]
[322975471,1713555038877,-324.76,0.00013752,2]
[322975473,1713555038887,-500.0,0.00013752,2]
[322975475,1713555038896,-150.0,0.00013763,2]
[322975477,1713555038905,-324.76,0.00013789,2]
[322975479,1713555038914,-250.0,0.0001381,2]
[322975481,1713555038923,-714.05,0.00013823,2]
[322975483,1713555038933,-324.76,0.00013826,2]
[322975485,1713555038942,-1500.0,0.00013832,2]
[322975487,1713555038951,-162.53,0.00013859,2]
[322975489,1713555038960,-324.76,0.00013863,2]
[322975491,1713555038969,-324.76,0.00013899,2]
[322975493,1713555038978,-669.41,0.0001392,2]
[322975495,1713555038988,-324.76,0.00013936,2]
[322975497,1713555038997,-324.76,0.00013973,2]
[322975499,1713555039006,-150.69,0.00014,2]
[322975501,1713555039015,-324.76,0.0001401,2]
[322975502,1713555039025,-324.76,0.00014047,2]
[322975505,1713555039034,-1114.58,0.00014065,2]
[322975506,1713555039043,-324.76,0.00014084,2]
[322975508,1713555039061,-324.76,0.00014121,2]
[322975510,1713555039070,-180.0,0.00014154,2]
[322975513,1713555039079,-324.76,0.00014158,2]
[322975515,1713555039089,-600.0,0.00014201,2]
[322975516,1713555039098,-152.73,0.0001427,2]
[322975519,1713555039108,-152.73,0.00014274,2]
[322975521,1713555039118,-152.73,0.00014279,2]
[322975522,1713555039127,-152.73,0.00014283,2]
[322975524,1713555039136,-152.73,0.00014287,2]
[322975527,1713555039146,-152.73,0.00014292,2]
[322975529,1713555039155,-152.73,0.00014296,2]
[322975531,1713555039164,-152.73,0.00014301,2]
[322975532,1713555039173,-152.73,0.00014305,2]
[322975535,1713555039183,-152.73,0.0001431,2]
[322975537,1713555039192,-152.73,0.00014314,2]
[322975538,1713555039201,-152.73,0.00014319,2]
[322975541,1713555039210,-152.73,0.00014323,2]
[322975542,1713555039219,-152.73,0.00014328,2]
[322975544,1713555039230,-152.73,0.00014332,2]
[322975546,1713555039240,-152.73,0.00014337,2]
[322975548,1713555039249,-152.73,0.00014341,2]
[322975549,1713555039259,-155.0,0.00014398,2]
[322975550,1713555039269,-1009.0,0.00014658,2]
[322975551,1713555039279,-451.821869,0.00014795,2]
[322975552,1713555039288,-1250.0,0.00015,2]
[322975553,1713555039299,-833.33691221,0.00015198,2]
[322975554,1713555039308,-350.23,0.0001526,2]
[322975555,1713555039317,-400.0,0.00015425,2]
[322975556,1713555039327,-150.0,0.000155,2]
[322975557,1713555039337,-451.821869,0.00015616,2]
[322975558,1713555039347,-1009.0,0.00015617,2]
[322975559,1713555039357,-150.0,0.00015625,2]
[322975560,1713555039367,-1392.33039841,0.0001568,2]
[322975561,1713555039376,-150.0,0.00015734,2]
[322975562,1713555039385,-854.9439,0.000158,2]
[322975563,1713555039394,-167.56,0.00015831,2]
[322975564,1713555039403,-167.0,0.00015831,2]
[322975565,1713555039412,-890.29160535,0.00015876,2]
[322975566,1713555039422,-3929.0688754,0.00015876,2]
[322975567,1713555039431,-177.49408055,0.00015876,2]
[322975568,1713555039440,-170.63737638,0.00015876,2]
[322975569,1713555039449,-1510.79961757,0.00015897,2]
[322975570,1713555039460,-161.43545051,0.00015898,2]
[322975571,1713555039470,-155.0,0.00015898,2]
[322975572,1713555039479,-155.0,0.00015898,2]
[322975573,1713555039487,-155.0,0.00015898,2]
[322975574,1713555039496,-210.50432826,0.00015898,2]
[322975575,1713555039506,-1585.03652121,0.00015898,2]
[322975576,1713555039515,-376.66109702,0.00015898,2]
[322975577,1713555039524,-1369.47483489,0.00015898,2]
[322975578,1713555039534,-202.17437643,0.00015898,2]
[322975579,1713555039543,-155.0,0.00015898,2]
[322975580,1713555039554,-155.10883907,0.00015898,2]
[322975581,1713555039563,-3135.4636211,0.00015898,2]
[322975582,1713555039576,-245.49189256,0.00015898,2]
[322975583,1713555039585,-253.27093466,0.00015898,2]
[322975584,1713555039594,-1059.92059232,0.00015898,2]
[322975585,1713555039603,-363.79877048,0.00015898,2]
[322975586,1713555039613,-4723.74384284,0.00015898,2]
[322975587,1713555039623,-6059.27000008,0.00015898,2]
[322975588,1713555039632,-215.79675141,0.00015898,2]
[322975589,1713555039643,-236.6335643,0.00015899,2]
[322975590,1713555039653,-2358.86672188,0.00015899,2]
[322975591,1713555039662,-1423.31443253,0.00015899,2]
[322975592,1713555039671,-155.0,0.00015899,2]
[322975593,1713555039681,-1081.54694968,0.00015899,5]
[322975594,1713555039691,-1001.1393,0.00015899,2]
[322975595,1713555039701,-1000.0,0.000159,2]
[322975596,1713555039710,-7500.0,0.000159,2]
[322975597,1713555039719,-203613.02350979,0.000159,2]
[322975598,1713555039733,-390.21121279,0.000159,2]
[322975599,1713555039755,-3751.56582909,0.000159,2]
[322975600,1713555039782,-1057.57328384,0.000159,2]
[322975601,1713555039793,-2534.27766681,0.000159,2]
[322975602,1713555039809,-455.00001549,0.000159,2]
[322975603,1713555039821,-1277.58242608,0.000159,2]
[322975605,1713555039925,-1986.0642,0.000159,2]
[322975606,1713555039937,-56083.77903042,0.000159,2]
[322975607,1713555039969,-2192.90566908,0.000159,2]
[322975608,1713555039980,-303.92885686,0.000159,2]
[322975609,1713555039992,-319.395,0.000159,2]
[322975610,1713555040011,-10510.64443999,0.000159,2]
[322975613,1713555040045,-697.05021252,0.000159,2]
[322975614,1713555040058,-597.24,0.000159,2]
[322975615,1713555040069,-643.69,0.000159,2]
[322975616,1713555040080,-400.0,0.000159,2]
[322975617,1713555040098,-3338.92157605,0.000159,2]
[322975621,1713555041094,-3170.32060532,0.000159,2]
[322975622,1713555041106,-3401.81458229,0.000159,2]
[322975623,1713555041126,-250.5,0.000159,2]
[322975624,1713555041163,-1407.0290311,0.000159,2]
[322975625,1713555041175,-4211.70784259,0.000159,2]
[322975626,1713555041186,-2611.22327998,0.000159,2]
[322975627,1713555041200,-354.72788086,0.000159,2]
[322975628,1713555041212,-348.49967892,0.000159,2]
[322975629,1713555041224,-1611.78936,0.000159,2]
[322975630,1713555041236,-617.9054,0.000159,2]
[322975631,1713555041247,-1899.8252368,0.000159,2]
[322975632,1713555041283,-648.928155,0.000159,2]
[322975633,1713555041295,-123226.91433534,0.000159,2]
[322975634,1713555041308,-1819.99999776,0.000159,2]
[322975635,1713555041320,-4744.3403348,0.000159,2]
[322975636,1713555041334,-6635.04033874,0.000159,2]
[322975637,1713555041475,-763.62803728,0.000159,2]
[322975638,1713555041486,-7852.07191948,0.000159,2]
[322975639,1713555041497,-380.26693468,0.000159,2]
[322975640,1713555041509,-3151.59999991,0.000159,2]
[322975641,1713555041520,-509.999985,0.000159,2]
[322975642,1713555041580,-290.82,0.000159,2]
[322975643,1713555041594,-290.77689149,0.000159,2]
[322975644,1713555041606,-555.29,0.000159,2]
[322975689,1713555043314,-935.21484251,0.000159,2]
[322975690,1713555043325,-1401.6000012,0.000159,2]
[322975691,1713555043337,-1250.0,0.000159,2]
[322975692,1713555043349,-400.0,0.000159,2]
[322975693,1713555043360,-337.65,0.000159,2]
[322975694,1713555043371,-3313.49505966,0.000159,2]
[322975695,1713555043383,-3104.42253721,0.000159,2]
[322975696,1713555043405,-3053.87288272,0.000159,2]
[322975697,1713555043476,-1343.35286263,0.000159,2]
[322975698,1713555043488,-259.81768672,0.000159,2]
[322975699,1713555043499,-1492.0001,0.000159,2]
[322975700,1713555043528,-558.68676379,0.000159,2]
[322975701,1713555043539,-46405.61641877,0.000159,2]
[322975702,1713555043564,-2221.03993,0.000159,2]
[322975703,1713555043575,-865.00999,0.000159,2]
[322975704,1713555043586,-289240.66003793,0.000159,2]
[322975705,1713555043597,-336.95839996,0.000159,2]
[322975706,1713555043608,-6700.5,0.000159,2]
[322975707,1713555043641,-7167.69647047,0.000159,2]
[322975708,1713555043656,-443.78599991,0.000159,2]
[322975709,1713555043669,-485.4727475,0.000159,2]
[322975710,1713555043680,-321.41549407,0.000159,2]
[322975711,1713555043692,-1468.79524653,0.000159,2]
[322975712,1713555043704,-57078.08479016,0.000159,2]
[322975729,1713555046267,-16765.49148638,0.000159,2]
[322975731,1713555046279,-3352.69443134,0.000159,2]
[322975732,1713555046290,-527.62,0.000159,2]
[322975733,1713555046340,-310.00217,0.000159,2]
[322975734,1713555046351,-37181.62119711,0.000159,2]
[322975735,1713555046364,-994.19092379,0.000159,2]
[322975736,1713555046374,-1013.92560801,0.000159,2]
[322975737,1713555046386,-1117.60952656,0.000159,2]
[322975738,1713555046397,-262.43489479,0.000159,2]
[322975739,1713555046416,-4731.95083641,0.000159,2]
[322975740,1713555046428,-567.4516775,0.000159,2]
[322975741,1713555046471,-291.2772942,0.000159,2]
[322975742,1713555046482,-1685.37611214,0.000159,2]
[322975743,1713555046503,-5245.19689501,0.000159,2]
[322975744,1713555046515,-1327.22324665,0.000159,2]
[322975745,1713555046538,-127875.52393543,0.000159,2]
[322975746,1713555046548,-600.0,0.00015976,2]
[322975747,1713555046560,-2352.85048105,0.00015996,2]
[322975748,1713555046569,-267.13908293,0.00015997,2]
[322975749,1713555046578,-1560.22405083,0.00015998,2]
[322975750,1713555046587,-343.06778074,0.00015998,2]
[322975751,1713555046596,-786.55541913,0.00015998,2]
[322975752,1713555046605,-427.73845478,0.00015999,2]
[322975753,1713555046614,-4034.84274817,0.00015999,2]
[322975754,1713555046623,-780.11091447,0.00015999,2]
[322975755,1713555046632,-1350.74235916,0.00015999,2]
[322975756,1713555046642,-13493.17061432,0.00015999,2]
[322975757,1713555046656,-554.97172968,0.00015999,2]
[322975758,1713555046665,-1081.54694967,0.00015999,5]
[322975759,1713555046674,-1081.54694967,0.00015999,5]
[322975760,1713555046684,-181976.13421132,0.00016,2]
[322975761,1713555046714,-605.50432414,0.00016,2]
[322975780,1713556106628,-4320.75216482,0.00011815,2]
[322975781,1713556106653,-155.0,0.00011815,2]
[322975782,1713556106676,-1060.25258185,0.00011816,2]
[322975783,1713556106699,-155.0,0.00011816,2]
[322975784,1713556106722,-155.0,0.00011816,2]
[322975785,1713556106746,-202.23587417,0.00011816,2]
[322975786,1713556106768,-155.0,0.00011816,2]
[322975787,1713556106791,-236.6335643,0.00011817,2]
[322975788,1713556106813,-155.0,0.00011817,2]
[322975789,1713556106835,-1993.92102893,0.00011817,2]
[322975790,1713556106856,-162.04921736,0.00011817,2]
[322975791,1713556106879,-709.66689776,0.00011818,2]
[322975792,1713556106902,-967.19043138,0.00011818,2]
[322975793,1713556106924,-363.06901353,0.00011818,2]
[322975794,1713556106950,-207.73115814,0.00011819,2]
[322975795,1713556106980,-157.17390177,0.00011819,2]
[322975796,1713556107006,-376.66109702,0.00011819,2]
[322975797,1713556107030,-3381.28227262,0.00011819,2]
[322975798,1713556107054,-155.0,0.0001182,2]
[322975799,1713556107079,-4726.9461132,0.0001182,2]
[322975800,1713556107101,-1982.92990131,0.00011845,2]
[322975801,1713556107125,-1982.92990131,0.00011845,2]
[322975802,1713556107147,-1982.92990131,0.00011845,2]
[322975803,1713556107169,-1982.92990131,0.00011845,2]
[322975804,1713556107194,-1477.12611251,0.00011847,2]
[322975805,1713556107216,-365.80477657,0.00011847,2]
[322975806,1713556107239,-1098.77,0.00011847,2]
[322975807,1713556109464,155.0,0.00011814,2]
[322975808,1713556124938,-1105.56,0.00011852,2]
[322975809,1713556124962,-499.99,0.00011852,2]
[322975811,1713556218092,-645.6649562,0.00012191,2]
[322975812,1713556218116,-1314.64,0.00012191,2]
[322975813,1713556218138,-150.99,0.0001222,2]
[322975814,1713556218162,-152.4,0.0001239,2]
[322975815,1713556218186,-152.4,0.00012551,2]
[322975817,1713556232430,-152.4,0.00012712,2]
[322975818,1713556232439,-369.73920169,0.00012849,2]
[322975819,1713556232475,-597.45122969,0.00012849,2]
[322975820,1713556232484,-157.17390177,0.0001285,2]
[322975821,1713556232493,-1000.0,0.00012851,2]
[322975822,1713556232502,-152.4,0.00012874,2]
[322975823,1713556232511,-162.53,0.00012928,2]
[322975824,1713556232519,-150.99,0.00012928,2]
[322975825,1713556232529,-250.0,0.00012931,2]
[322975826,1713556232538,-152.4,0.00013035,2]
[322975827,1713556232548,-2886.17,0.00013048,2]
[322975828,1713556232557,-500.0,0.00013425,2]